[Event "FIDE Womens Grand Prix-I 2022-23"]
[Site "Nur-Sultan"]
[Date "2022.09.26"]
[Round "8.1"]
[White "Shuvalova, Polina"]
[Black "Kosteniuk, Alexandra"]
[Result "1-0"]
[ECO "D02"]
[WhiteElo "2510"]
[BlackElo "2521"]
[Annotator "TA"]
[PlyCount "117"]
[EventDate "2022.09.15"]
[EventType "tourn"]
[EventCountry "KAZ"]
[SourceTitle "playchess.com"]
[Source "ChessBase"]
[SourceQuality "1"]
[TimeControl "40/5400+30:1800+30"]

{[%evp 9,117,0,10,23,20,39,45,40,76,76,74,78,80,80,70,74,77,77,79,66,82,67,61,67,67,58,77,70,80,85,79,83,89,71,77,60,51,12,12,0,0,0,0,0,122,122,122,119,119,122,115,115,115,115,115,112,113,115,188,188,273,273,279,261,508,506,508,515,508,508,472,463,444,434,407,363,554,543,470,273,1032,1000,967,626,935,873,836,813,1252,1166,6078,5708,29971,29973,29974,29975,29975,29975,29974,29974,29976,29975,29975,29976,29976,29977,29977,29978,29983,29983]} 1. d4 {[%emt 0:00:03]} d5 {[%emt 0:00:04]} 2. Nf3 {[%emt 0:00:09]} Nf6 {[%emt 0:00:12]} 3. Bf4 {[%emt 0:00:08]} c5 {[%emt 0:00:15]} 4. e3 {[%emt 0:00:06]} Nc6 {[%emt 0:00:18]} 5. Nbd2 {[%emt 0:00:06]} Nh5 {[%emt 0:04:31]} 6. dxc5 {[%emt 0:00:07] D02: 1 d4 d5 2 Nf3 sidelines, including 2...Nf6 3 g3 and 2...Nf6 3 Bf4.} Nxf4 {[%emt 0:00:26]} 7. exf4 {[%emt 0:00:04]} e6 {[%emt 0:04:47]} 8. Nb3 {[%emt 0:00:10] White is slightly better.} Qf6 {[%emt 0:04:37]} 9. Qc1 $1 {[%emt 0:02:38]} g6 {[%emt 0:00:31]} 10. Bb5 {[%emt 0:02:19]} Bh6 {[%emt 0:04:02]} 11. g3 {[%emt 0:00:21]} O-O {[%emt 0:06:02]} 12. O-O {[%emt 0:03:01]} Bd7 {[%emt 0:03:00]} 13. Re1 {[%emt 0:01:01] [#]} Rfc8 $146 {[%emt 0:03:06]} ({Predecessor:} 13... a6 14. Bxc6 Bxc6 15. Ne5 Rfc8 16. Ng4 Qg7 17. Nxh6+ Qxh6 18. Nd4 Ba4 19. b3 Bd7 {0-1 (42) Kamsky,G (2661)-Moiseenko,A (2582) Chess.com INT 2022}) 14. c3 {[%emt 0:02:22]} Nb8 {[%emt 0:06:00]} 15. a4 {[%emt 0:06:02]} a6 {[%emt 0:06:04]} 16. Bf1 {[%emt 0:00:18]} Be8 {[%emt 0:00:31]} 17. Ne5 {[%emt 0:02:47]} Qd8 {[%emt 0:09:40]} 18. Qe3 {[%emt 0:06:07]} Nd7 {[%emt 0:00:52]} 19. Nxd7 {[%emt 0:01:29] White is much more active.} Bxd7 {[%emt 0:00:05]} 20. Nd4 {[%emt 0:00:12]} a5 {[%emt 0:15:20]} 21. Bb5 {[%emt 0:02:35]} Bg7 {[%emt 0:00:25]} 22. b4 {[%emt 0:03:57]} Qe8 {[%emt 0:06:15]} 23. bxa5 {[%emt 0:08:27]} Rxa5 {[%emt 0:01:54]} 24. Nb3 {[%emt 0:01:26]} Raa8 {[%emt 0:00:19]} 25. Nd4 {[%emt 0:10:48]} Bf8 {[%emt 0:02:45]} 26. f5 $36 {[%emt 0:08:25][%mdl 2048] White has some pressure.} exf5 {[%emt 0:02:15]} (26... gxf5 $11 {keeps the balance.} 27. Qg5+ Kh8) 27. Qxe8 $1 $16 {[%emt 0:08:47] White now steadily converts the win.} Bxe8 {[%emt 0:00:03]} 28. Bxe8 {[%emt 0:00:09]} Rxe8 {[%emt 0:00:04]} 29. Rxe8 {[%emt 0:00:11]} Rxe8 $11 {[%emt 0:00:01][%mdl 4096] Endgame [#] KRB-KRN} 30. c6 {[%emt 0:00:06]} bxc6 {[%emt 0:00:03] [#]} 31. a5 $1 {[%emt 0:00:31][%cal Ba4a5,Ba5a6][%mdl 32]} Bc5 {[%emt 0:01:05]} 32. Nxc6 {[%emt 0:03:12] a6 is the strong threat.} Re6 {[%emt 0:06:26]} 33. Nb4 {[%emt 0:04:03]} Rd6 {[%emt 0:10:20]} (33... Re2 $16 {was necessary.}) 34. a6 $18 {[%emt 0:01:04] Threatens to win with Ra5.} Ba7 {[%emt 0:00:17]} (34... d4 $142 35. a7 Bxa7) 35. Ra5 {[%emt 0:03:02]} d4 {[%emt 0:00:04]} 36. cxd4 {[%emt 0:00:03] Hoping for d5.} Rxd4 {[%emt 0:00:08]} (36... Rb6) 37. Nc6 {[%emt 0:00:45][%csl LRa7,LRd4]} Rd7 {[%emt 0:00:10]} 38. Nxa7 {[%emt 0:04:46]} Rxa7 {[%emt 0:00:01] KR-KR} 39. f4 {[%emt 0:00:05]} Kf8 {[%emt 0:01:20]} 40. Kf2 {[%emt 0:00:05]} Ke7 {[%emt 0:00:13]} 41. Ke3 {[%emt 0:30:04]} Kd6 {[%emt 0:30:26]} 42. Kd4 {[%emt 0:00:04]} f6 {[%emt 0:00:09]} (42... Kc6 $142 43. Ke5 Kb6) 43. Ra1 {[%emt 0:00:48]} Kc6 {[%emt 0:03:07]} 44. Kc4 {[%emt 0:00:53]} Rc7 $2 {[%emt 0:00:00]} (44... Kc7 45. Kb5 Kb8) 45. Kb4 {[%emt 0:00:00] Intending a7 and mate.} Ra7 {[%emt 0:00:00]} 46. Ka5 {[%emt 0:00:00]} Ra8 {[%emt 0:00:00]} 47. Rc1+ {[%emt 0:00:00]} Kd6 {[%emt 0:00:00]} 48. Rb1 {[%emt 0:00:00]} Kd5 {[%emt 0:00:00]} 49. Rb7 {[%emt 0:00:00] White threatens a7 and mate.} g5 {[%emt 0:00:00]} 50. a7 {[%emt 0:00:00] White wants to mate with Ka6.} gxf4 {[%emt 0:00:00]} 51. gxf4 {[%emt 0:00:00] White mates.} Ke4 {[%emt 0:00:00]} 52. Rxh7 {[%emt 0:00:00]} Kxf4 {[%emt 0:00:00]} 53. Ka6 {[%emt 0:00:00]} Kg4 {[%emt 0:00:00]} 54. Rf7 {[%emt 0:00:00]} f4 {[%emt 0:00:00]} 55. Rxf6 {[%emt 0:00:00]} Rh8 {[%emt 0:00:00]} 56. Kb7 {[%emt 0:00:00]} Rh7+ {[%emt 0:00:00]} 57. Kb6 {[%emt 0:00:00]} Rh8 {[%emt 0:00:00]} 58. Rf7 {[%emt 0:00:00]} f3 {[%emt 0:00:00]} 59. Kb7 {[%emt 0:00:00] Weighted Error Value: White=0.03 (flawless) /Black=0.34} 1-0

[Event "FIDE Womens Grand Prix-I 2022-23"]
[Site "Nur-Sultan"]
[Date "2022.09.26"]
[Round "8.2"]
[White "Vaishali, Rameshbabu"]
[Black "Abdumalik, Zhansaya"]
[Result "1/2-1/2"]
[ECO "C90"]
[WhiteElo "2449"]
[BlackElo "2503"]
[Annotator "TA"]
[PlyCount "89"]
[EventDate "2022.09.15"]
[EventType "tourn"]
[EventCountry "KAZ"]
[SourceTitle "playchess.com"]
[Source "ChessBase"]
[SourceQuality "1"]
[TimeControl "40/5400+30:1800+30"]

{[%evp 27,89,18,27,26,29,12,22,23,10,0,0,0,0,0,0,0,0,0,9,0,0,0,0,-8,0,0,0,0,0,0,0,0,0,0,0,0,0,0,0,0,0,0,0,0,0,0,5,0,0,0,198,198,198,191,191,191,198,198,191,186,184,173,158,0]} 1. e4 {[%emt 0:00:36]} e5 {[%emt 0:00:12]} 2. Nf3 {[%emt 0:00:05]} Nc6 {[%emt 0:00:04]} 3. Bb5 {[%emt 0:00:04]} a6 {[%emt 0:00:11]} 4. Ba4 {[%emt 0:00:04]} Nf6 {[%emt 0:00:07]} 5. O-O {[%emt 0:00:07]} Be7 {[%emt 0:01:08]} 6. d3 {[%emt 0:02:17]} b5 {[%emt 0:01:28]} 7. Bb3 {[%emt 0:00:02]} d6 {[%emt 0:00:13]} 8. c3 {[%emt 0:01:57]} O-O {[%emt 0:01:09]} 9. Re1 {[%emt 0:00:15]} Na5 {[%emt 0:00:37]} 10. Bc2 {[%emt 0:00:06]} c5 {[%emt 0:00:07]} 11. Nbd2 {[%emt 0:01:35][%cal Bb1d2,Bd2f1,Bf1e3][%mdl 32]} Re8 {[%emt 0:01:40]} 12. Nf1 {[%emt 0:00:19]} Bf8 {[%emt 0:01:41][%cal Be7f8,Bf8g7,Bg7f6][%mdl 32]} 13. Bg5 {[%emt 0:01:43]} h6 {[%emt 0:04:58]} 14. Bh4 {[%emt 0:03:55]} g6 {[%emt 0:04:06]} 15. Ne3 {[%emt 0:18:45] C90: Closed Ruy Lopez with 7...d6: Early deviations.} Bg7 {[%emt 0:02:49]} 16. a4 {[%emt 0:01:22] Threatens to win with axb5.} b4 {[%emt 0:06:14] [#]} 17. cxb4 $146 {[%emt 0:16:49] The position is equal.} ({Predecessor:} 17. Nd5 g5 18. Nxf6+ Qxf6 19. Bg3 Bg4 20. Re3 bxc3 21. bxc3 Rab8 22. Rb1 Qe6 23. Qc1 {1-0 (44) Geher,L (1850)-Deli,K (1793) Budapest 2017}) 17... cxb4 {[%emt 0:00:17]} 18. Bxf6 {[%emt 0:03:06]} Bxf6 {[%emt 0:01:35]} 19. Bb3 {[%emt 0:01:23]} Nxb3 {[%emt 0:09:00]} 20. Qxb3 {[%emt 0:00:36]} a5 {[%emt 0:03:19]} 21. Rac1 {[%emt 0:04:12]} Bg5 {[%emt 0:07:14]} 22. Nxg5 {[%emt 0:06:23]} hxg5 {[%emt 0:00:54]} 23. Nd5 {[%emt 0:07:00] Black must now prevent Nc7.} Be6 {[%emt 0:03:07]} 24. h3 {[%emt 0:10:12]} Kg7 {[%emt 0:03:02]} 25. d4 {[%emt 0:06:09]} exd4 {[%emt 0:11:28]} 26. Rcd1 {[%emt 0:00:07]} Rc8 {[%emt 0:06:48]} 27. Rxd4 {[%emt 0:03:03]} g4 {[%emt 0:03:25]} 28. hxg4 {[%emt 0:02:53]} Qh4 {[%emt 0:01:00]} 29. Qh3 {[%emt 0:02:32]} Qxh3 {[%emt 0:09:17]} 30. gxh3 {[%emt 0:00:02]} Rc2 {[%emt 0:00:17]} 31. b3 {[%emt 0:00:05]} Rec8 {[%emt 0:01:49]} 32. Re3 {[%emt 0:03:56]} Rb2 {[%emt 0:01:44]} 33. Kg2 {[%emt 0:00:49]} Rcc2 {[%emt 0:04:14]} 34. Rf3 {[%emt 0:00:11]} Rb1 {[%emt 0:01:53]} 35. g5 {[%emt 0:03:38]} Rcc1 {[%emt 0:00:55] Strongly threatening ...Rg1+.} 36. Kg3 {[%emt 0:00:31]} Rh1 {[%emt 0:02:34]} 37. Kh4 {[%emt 0:01:37]} Rh2 {[%emt 0:03:06]} 38. Nf6 {[%emt 0:00:28]} Rxb3 $2 {[%emt 0:00:29]} (38... Rc1 $11) 39. Rxb3 $18 {[%emt 0:00:21] White is clearly better.} Bxb3 $11 {[%emt 0:00:04][%mdl 4096] Endgame KRB-KRN} 40. Kg3 {[%emt 0:00:40]} Rh1 {[%emt 0:00:08] Hoping for ...Rd1.} 41. Rxd6 {[%emt 0:06:26] Intending Rd8 and mate.} Be6 {[%emt 0:05:57] [#]} (41... Bxa4 {leads to mate.} 42. Rd8) 42. Rd8 $1 {[%emt 0:00:39][%csl Gf6][%cal Rd8g8]} Rxh3+ {[%emt 0:00:05]} 43. Kf4 {[%emt 0:00:04][%csl Gf6][%cal Rd8g8]} Rh8 {[%emt 0:00:12] Against Rg8+} 44. Ne8+ {[%emt 0:00:05]} Kh7 {[%emt 0:00:11] [#]} 45. Nf6+ $2 {[%emt 0:00:05] Weighted Error Value: White=0.02 (flawless) /Black=0.13 (very precise)} (45. Ra8 $1 $16) 1/2-1/2

[Event "FIDE Womens Grand Prix-I 2022-23"]
[Site "Nur-Sultan"]
[Date "2022.09.26"]
[Round "8.3"]
[White "Goryachkina, Aleksandra"]
[Black "Zhu, Jiner"]
[Result "1-0"]
[ECO "A28"]
[WhiteElo "2579"]
[BlackElo "2464"]
[Annotator "TA"]
[PlyCount "85"]
[EventDate "2022.09.15"]
[EventType "tourn"]
[EventCountry "KAZ"]
[SourceTitle "playchess.com"]
[Source "ChessBase"]
[SourceQuality "1"]
[TimeControl "40/5400+30:1800+30"]

{[%evp 13,85,11,2,0,8,10,16,0,0,0,0,5,13,-6,-2,0,-8,-13,-10,-16,-15,-23,-18,-18,-28,-30,-20,-44,0,-15,0,0,21,0,0,0,53,68,346,338,323,323,465,460,434,447,435,379,583,589,638,638,885,862,779,683,1041,1103,990,938,29972,29976,29976,29977,29975,29978,29978,29977,29977,29978,29975,5795,1870,1851]} 1. c4 {[%emt 0:00:13]} e5 {[%emt 0:00:19]} 2. Nc3 {[%emt 0:00:18]} Nf6 {[%emt 0:00:16]} 3. Nf3 {[%emt 0:00:38]} Nc6 {[%emt 0:00:14]} 4. e4 {[%emt 0:01:06]} Bc5 {[%emt 0:01:30]} 5. Nxe5 {[%emt 0:01:15]} Nxe5 {[%emt 0:00:29]} 6. d4 {[%emt 0:00:07]} Bb4 {[%emt 0:00:14]} 7. dxe5 {[%emt 0:00:10]} Nxe4 $1 {[%emt 0:00:08]} 8. Qf3 $1 {[%emt 0:01:01][%mdl 4] is recently more successful than 8.Qd4. A28: English Opening: Four Knights Variation.} Nxc3 {[%emt 0:00:18]} 9. bxc3 {[%emt 0:00:07]} Ba5 {[%emt 0:00:16]} 10. Bf4 {[%emt 0:03:12] The position is equal.} O-O {[%emt 0:00:39]} 11. Be2 {[%emt 0:03:32]} d6 {[%emt 0:25:21][%cal Oc8g4]} 12. Rd1 {[%emt 0:00:39][%cal Re5d6]} Re8 {[%emt 0:06:17] [#]} 13. c5 $146 {[%emt 0:15:27][%cal Rc5d6]} ({Predecessor:} 13. exd6 Bd7 14. O-O Bc6 15. Qg4 cxd6 16. Rxd6 Qe7 17. Bd3 Bxc3 18. c5 Be5 19. Re1 Bxd6 20. Rxe7 Bxe7 {0-1 (42) Cofre Archibold,N (2279)-Perez Rodriguez,L (2324) Tornelo INT 2021}) 13... Qh4 {[%emt 0:01:02]} 14. Bg3 {[%emt 0:05:42]} ({Much weaker is} 14. g3 Qh3 15. cxd6 Bd7 $17) 14... Qg5 {[%emt 0:02:04]} 15. cxd6 {[%emt 0:01:28]} cxd6 {[%emt 0:00:27]} 16. h4 {[%emt 0:17:28]} ({But not} 16. Bc4 Qf5 17. Qe3 Bb6 $17) 16... Qf5 {[%emt 0:01:01]} 17. exd6 {[%emt 0:07:56]} Qxf3 {[%emt 0:07:47]} 18. gxf3 {[%emt 0:00:05]} Bxc3+ {[%emt 0:00:05]} 19. Kf1 {[%emt 0:00:05] [#] aiming for d7.} Bd7 {[%emt 0:00:50][%cal Oe8e2] And now ...Rxe2! would win.} 20. Bc4 {[%emt 0:07:19]} h5 {[%emt 0:13:26]} 21. Rc1 {[%emt 0:07:56]} Be5 {[%emt 0:01:23]} 22. Kg2 {[%emt 0:01:41]} Bxg3 {[%emt 0:11:59]} 23. Kxg3 {[%emt 0:00:19]} Rad8 {[%emt 0:03:17]} 24. Rhd1 {[%emt 0:03:50]} Be6 {[%emt 0:02:41]} (24... Kf8 $11) 25. Bb5 $14 {[%emt 0:02:03]} Bd7 {[%emt 0:00:12][%mdl 8192] Loses the game.} (25... Rf8 $1 $14) 26. Bxd7 $18 {[%emt 0:02:07]} Rxd7 {[%emt 0:00:06][%mdl 4096] Endgame KRR-KRR} 27. Rc7 {[%emt 0:01:17]} Red8 {[%emt 0:04:30]} (27... Rdd8 $142 28. d7 (28. Rxb7 Re6 $16) 28... Rf8 29. Rxb7 a6) 28. Rxd7 {[%emt 0:00:09]} Rxd7 {[%emt 0:00:03] KR-KR} 29. Kf4 {[%emt 0:00:06]} Kf8 {[%emt 0:14:12]} 30. Ke5 {[%emt 0:00:13]} Rd8 {[%emt 0:00:23]} (30... Ke8 $142 31. Rg1 Kf8) 31. Kd5 {[%emt 0:01:22]} g6 {[%emt 0:03:05]} 32. Rc1 {[%emt 0:02:26]} Ke8 {[%emt 0:00:16]} 33. Re1+ {[%emt 0:00:34]} Kf8 {[%emt 0:00:10]} 34. Re7 {[%emt 0:00:31]} Rb8 {[%emt 0:00:11]} 35. Rc7 {[%emt 0:01:58] [#] Hoping for d7.} Ke8 {[%emt 0:00:18]} 36. Ke5 {[%emt 0:01:14]} a5 {[%emt 0:01:55]} 37. Re7+ {[%emt 0:00:49]} Kf8 {[%emt 0:00:15]} 38. Kf6 {[%emt 0:00:22]} b5 {[%emt 0:00:31]} 39. Rxf7+ {[%emt 0:00:08]} Kg8 {[%emt 0:00:07]} 40. Rg7+ {[%emt 0:01:22]} Kf8 {[%emt 0:00:11]} 41. Rh7 {[%emt 0:32:45][%cal Rh7h8]} Kg8 {[%emt 0:30:12]} 42. Ra7 {[%emt 0:00:41]} (42. Re7 $142 a4 43. d7 Kf8 44. Rf7+ Kg8 45. Rg7+ Kf8 46. Rxg6 Rb6+ 47. Ke5) 42... Rf8+ {[%emt 0:00:26]} 43. Kxg6 {[%emt 0:02:31] Weighted Error Value: White=0.04 (flawless) /Black=0.52} 1-0

[Event "FIDE Womens Grand Prix-I 2022-23"]
[Site "Nur-Sultan"]
[Date "2022.09.26"]
[Round "8.4"]
[White "Lagno, Kateryna"]
[Black "Paehtz, Elisabeth"]
[Result "1-0"]
[ECO "B30"]
[WhiteElo "2547"]
[BlackElo "2477"]
[Annotator "TA"]
[PlyCount "117"]
[EventDate "2022.09.15"]
[EventType "tourn"]
[EventCountry "KAZ"]
[SourceTitle "playchess.com"]
[Source "ChessBase"]
[SourceQuality "1"]
[TimeControl "40/5400+30:1800+30"]

{[%evp 12,117,31,23,65,13,41,53,52,39,80,68,69,47,50,23,49,35,58,64,66,56,78,90,109,109,158,95,105,67,78,75,106,104,105,105,110,100,98,91,99,94,96,90,126,122,131,120,138,138,138,102,138,138,138,138,152,138,138,138,170,171,164,138,233,228,207,131,264,124,215,225,516,485,943,844,575,844,844,844,780,809,839,837,812,829,799,789,728,704,933,929,948,831,922,880,900,842,960,943,1601,814,1005,983,29963,6303,5189,1809]} 1. e4 {[%emt 0:00:02]} c5 {[%emt 0:00:02][%cal Bc7c5,Bc5d4][%mdl 32]} 2. Nf3 {[%emt 0:00:10]} Nc6 {[%emt 0:00:03]} 3. Bb5 {[%emt 0:00:14]} e6 {[%emt 0:00:04]} 4. O-O {[%emt 0:00:25]} Nge7 {[%emt 0:00:06]} 5. Re1 {[%emt 0:00:19]} Nd4 {[%emt 0:11:23]} 6. Nxd4 {[%emt 0:21:02]} cxd4 {[%emt 0:00:03]} 7. c3 $1 {[%emt 0:01:00] 7.c3 scores better than 7.d3.} Qb6 {[%emt 0:00:39] B30: Sicilian: 2...Nc6 3 Bb5, lines without ...g6.} 8. Qb3 {[%emt 0:13:09]} (8. Ba4 $14) 8... g6 {[%emt 0:19:45]} 9. Na3 {[%emt 0:05:12]} Bg7 {[%emt 0:02:56] White is slightly better.} 10. Nc2 {[%emt 0:05:04] [#]} e5 $146 {[%emt 0:10:56]} ({Predecessor:} 10... O-O 11. Nxd4 a6 12. Ba4 Bxd4 13. cxd4 Qxd4 14. Qa3 Re8 15. d3 f5 16. Be3 Qe5 {½-½ (39) Tumanov,D (2157)-Lindholm,J (2093) Helsinki 2017}) 11. cxd4 {[%emt 0:00:25]} exd4 {[%emt 0:00:04]} 12. a4 {[%emt 0:07:47][%cal Ba2a4,Ba4a5][%mdl 32]} O-O {[%emt 0:02:09]} 13. a5 {[%emt 0:01:11]} Qc7 {[%emt 0:02:10]} 14. d3 {[%emt 0:02:55][%cal Ob3a3]} a6 {[%emt 0:21:03]} 15. Bc4 {[%emt 0:00:15]} Nc6 {[%emt 0:00:04]} 16. Bd2 {[%emt 0:01:19]} d6 {[%emt 0:01:49]} 17. Bd5 {[%emt 0:05:03]} Qe7 {[%emt 0:05:19]} 18. f4 {[%emt 0:02:37]} Nd8 {[%emt 0:02:23]} ({Better is} 18... Be6) 19. e5 {[%emt 0:05:29]} ({White should play} 19. Na3) 19... Nc6 {[%emt 0:04:31][%cal Rd6e5]} 20. Qc4 {[%emt 0:07:01] White is much more active. The black rooks are badly placed.} Bd7 {[%emt 0:06:03][%cal Rd6e5]} 21. Nxd4 {[%emt 0:04:43]} Nxd4 {[%emt 0:06:38]} 22. Qxd4 {[%emt 0:00:04]} dxe5 {[%emt 0:00:03]} 23. fxe5 {[%emt 0:00:18] [#] Bb4 is the strong threat.} Be6 {[%emt 0:00:03] Strongly threatening ...Rfd8.} 24. Bxe6 {[%emt 0:02:05]} ({Wrong is} 24. Bb4 $2 Qd7 25. Bxf8 Bxf8 $19) 24... Qxe6 {[%emt 0:00:03]} 25. Qe4 {[%emt 0:01:04]} Rfd8 {[%emt 0:00:29]} 26. Bc3 {[%emt 0:01:34]} Rd5 {[%emt 0:00:39]} 27. Re3 {[%emt 0:00:58][%cal Be1e3,Be3f3,Bf3f4][%mdl 32]} Rad8 {[%emt 0:00:07]} 28. Rf1 {[%emt 0:00:37]} R8d7 {[%emt 0:01:02]} 29. h3 {[%emt 0:00:32]} Re7 {[%emt 0:01:06][%cal Rg7e5]} 30. d4 {[%emt 0:03:34]} Re8 {[%emt 0:01:16]} 31. Ref3 {[%emt 0:00:49]} Re7 {[%emt 0:01:09]} 32. Qc2 {[%emt 0:01:13]} Red7 {[%emt 0:00:58]} 33. Qf2 {[%emt 0:00:16]} Qe8 {[%emt 0:00:28]} 34. Rf4 {[%emt 0:01:13]} Qe6 {[%emt 0:00:09]} 35. Qf3 {[%emt 0:00:13]} Qe8 {[%emt 0:01:10]} 36. h4 {[%emt 0:00:32][%cal Bh3h4,Bh4h5,Bh5h6][%mdl 32]} Qe6 {[%emt 0:00:36]} 37. h5 {[%emt 0:00:20]} Rb5 {[%emt 0:00:20]} (37... g5 $16 38. Rf5 h6) 38. Qe4 {[%emt 0:02:33]} Rbd5 {[%emt 0:00:31]} 39. Rh4 {[%emt 0:02:52]} Qe8 {[%emt 0:01:08]} (39... g5 $16) 40. Rf3 {[%emt 0:01:25]} (40. hxg6 $18 hxg6 41. Rh1) 40... Qe6 {[%emt 0:00:25]} (40... g5 $16) 41. h6 $18 {[%emt 0:31:30]} Bf8 {[%emt 0:05:32]} (41... f5 {might work better.} 42. exf6 Qxe4 43. Rxe4 Bf8) 42. Rf6 {[%emt 0:00:00]} Qe8 {[%emt 0:00:14]} (42... Qe7 $142 43. Rhf4 Bxh6 44. Rxf7 Qe8) 43. Rhf4 {[%emt 0:00:00] Black must now prevent e6.} Bxh6 {[%emt 0:00:37]} 44. e6 {[%emt 0:00:00] White threatens exf7+ and mate.} Bxf4 {[%emt 0:06:52]} 45. exf7+ {[%emt 0:00:00][%mdl 64] [#] Discovered Attack} Qxf7 {[%emt 0:00:04]} 46. Rxf7 {[%emt 0:00:00]} Kxf7 {[%emt 0:00:03]} 47. Qxf4+ {[%emt 0:00:00]} Rf5 {[%emt 0:00:04]} 48. Qb8 {[%emt 0:00:00]} Rfd5 {[%emt 0:00:42]} 49. Qh8 {[%emt 0:00:00]} Ke6 {[%emt 0:00:51]} 50. Qe8+ {[%emt 0:00:00]} Kf6 {[%emt 0:02:06]} 51. Bb4 {[%emt 0:00:00]} h5 {[%emt 0:00:29]} 52. Qe4 {[%emt 0:00:00]} Kf7 {[%emt 0:00:51]} 53. Bc5 {[%emt 0:00:00]} Rf5 {[%emt 0:00:37]} 54. Qe3 {[%emt 0:00:00]} Kg7 {[%emt 0:00:39]} 55. Qe8 {[%emt 0:00:00]} Rfd5 {[%emt 0:00:41]} 56. Qf8+ {[%emt 0:00:00]} Kh7 {[%emt 0:00:04]} 57. Be7 {[%emt 0:00:00] White wants to mate with Bf6.} Rf5 {[%emt 0:02:03]} 58. Bf6 {[%emt 0:00:00][%csl Gf6][%cal Rf8h8]} g5 {[%emt 0:00:07]} 59. Qe8 {[%emt 0:00:00][%csl LRd7,LRh5] Weighted Error Value: White=0.18 (very precise) /Black=0.37} 1-0